bitfinex/quotes_SOLUSD_20250422
["timestamp","ask_amount","ask_price","bid_price","bid_amount"]
[1745359018327,0.063,147.69,147.68,18.64964886]
[1745359018530,0.063,147.69,147.68,19.64964886]
[1745359018762,0.063,147.82,147.71,26.0]
[1745359018937,0.063,147.82,147.77,49.45013384]
[1745359019253,0.063,147.82,147.78,49.45013384]
[1745359019553,0.063,147.82,147.77,49.45013384]
[1745359019749,0.063,147.82,147.72,232.36]
[1745359019939,0.063,147.82,147.78,49.45013384]
[1745359020134,0.063,147.82,147.79,49.45013384]
[1745359020339,0.063,147.82,147.81,49.45013384]
[1745359021025,0.03,147.96,147.81,49.45013384]
[1745359021223,49.48013384,147.96,147.89,49.45013384]
[1745359021446,0.03,147.96,147.9,49.45013384]
[1745359021645,0.03,147.96,147.91,49.45013384]
[1745359021857,0.03,147.96,147.88,49.45013384]
[1745359022035,49.48013384,147.96,147.89,49.45013384]
[1745359022348,0.03,147.96,147.91,49.45013384]
[1745359022881,0.03,147.96,147.93,49.45013384]
[1745359023065,0.03,147.96,147.94,49.45013384]
[1745359023259,0.03,147.96,147.91,49.45013384]
[1745359023567,0.03,147.96,147.93,49.45013384]
[1745359023763,0.03,147.96,147.94,49.45013384]
[1745359023962,0.03,147.96,147.95,49.45013384]
[1745359024784,0.03,147.96,147.91,1.0]
[1745359024984,0.03,147.96,147.95,49.45013384]
[1745359025186,0.03,147.96,147.9,26.0]
[1745359025689,0.03,147.96,147.93,49.45013384]
[1745359026188,0.03,147.96,147.87,232.3]
[1745359026685,49.45013384,147.92,147.87,232.3]
[1745359026857,0.03,147.96,147.87,232.3]
[1745359027052,49.45013384,147.92,147.87,232.3]
[1745359027254,68.0997827,147.9,147.87,232.3]
[1745359027464,49.45013384,147.88,147.87,232.3]
[1745359027671,18.64964886,147.87,147.79,49.45013384]
[1745359027887,49.45013384,147.84,147.77,281.49013384]
[1745359028062,49.45013384,147.83,147.77,232.04]
[1745359028253,26.0,147.86,147.77,232.04]
[1745359028454,49.45013384,147.83,147.77,232.04]
[1745359028656,18.64964886,147.84,147.77,232.04]
[1745359028971,49.45013384,147.82,147.77,232.04]
[1745359029158,6.76635766,147.79,147.77,232.04]
[1745359031257,6.76498444,147.82,147.77,232.04]
[1745359031587,6.76315433,147.86,147.8,49.45013384]
[1745359031885,49.45013384,147.88,147.81,49.45013384]
[1745359032187,6.7617824,147.89,147.82,49.45013384]
[1745359032355,6.7617824,147.89,147.84,49.45013384]
[1745359032684,49.45013384,147.91,147.84,49.45013384]
[1745359032987,49.45013384,147.95,147.87,49.45013384]
[1745359033283,0.03,147.96,147.89,49.45013384]
[1745359033591,0.03,147.96,147.84,26.0]
[1745359033592,0.03,147.96,147.92,49.45013384]
[1745359033760,0.03,147.96,147.85,26.0]
[1745359033957,0.03,147.96,147.9,49.45013384]
[1745359034259,68.0997827,147.95,147.8,2.5075]
[1745359034459,0.03,147.96,147.9,49.45013384]
[1745359034784,0.03,147.96,147.92,49.45013384]
[1745359035086,0.03,147.96,147.93,49.45013384]
[1745359035688,0.03,147.96,147.9,231.98]
[1745359035983,0.03,147.96,147.94,49.45013384]
[1745359036573,0.03,147.96,147.9,231.98]
[1745359037078,0.03,147.96,147.93,49.45013384]
[1745359037382,0.03,147.96,147.9,231.98]
[1745359037585,0.03,147.96,147.94,49.45013384]
[1745359037878,0.03,147.96,147.93,49.45013384]
[1745359038680,49.45013384,147.95,147.9,231.98]
[1745359038977,49.45013384,147.92,147.9,231.98]
[1745359039384,0.03,147.96,147.9,231.98]
[1745359039601,56.21054487,147.92,147.9,231.98]
[1745359039762,6.76041103,147.92,147.9,231.98]
[1745359040084,56.21054487,147.92,147.9,231.98]
[1745359040285,49.45013384,147.91,147.9,231.98]
[1745359040584,6.76041103,147.92,147.9,231.98]
[1745359041169,68.0997827,147.93,147.9,231.98]
[1745359041370,18.64964886,147.93,147.9,231.98]
[1745359041575,68.0997827,147.93,147.9,231.98]
[1745359041883,26.0,147.94,147.9,231.98]
[1745359042181,75.45013384,147.94,147.9,231.98]
[1745359042378,49.45013384,147.93,147.9,231.98]
[1745359042779,49.45013384,147.92,147.9,231.98]
[1745359042982,18.64964886,147.9,147.8,231.9]
[1745359043164,49.45013384,147.89,147.8,231.9]
[1745359043371,49.45013384,147.89,147.82,49.45013384]
[1745359043574,49.45013384,147.89,147.8,231.9]
[1745359043894,56.21200517,147.89,147.81,49.45013384]
[1745359044101,49.45013384,147.87,147.8,231.9]
[1745359044386,18.64964886,147.88,147.8,231.9]
[1745359044569,18.64964886,147.86,147.8,281.35013384]
[1745359045169,18.64964886,147.88,147.8,231.9]
[1745359045393,49.45013384,147.86,147.8,231.9]
[1745359045701,49.45013384,147.85,147.8,231.9]
[1745359046077,18.64964886,147.86,147.8,231.9]
[1745359046284,75.45013384,147.88,147.81,49.45013384]
[1745359046584,18.64964886,147.92,147.8,231.9]
[1745359046787,49.45013384,147.95,147.88,49.45013384]
[1745359046974,56.12923384,147.96,147.81,26.0]
[1745359047168,49.48013384,147.96,147.81,27.0]
[1745359047373,49.48013384,147.96,147.88,49.45013384]
[1745359047586,49.45013384,147.94,147.8,231.9]
[1745359047792,49.45013384,147.93,147.86,49.45013384]
[1745359048724,49.45013384,147.91,147.8,257.9]
[1745359048870,49.45013384,147.91,147.84,49.45013384]
[1745359049070,18.64964886,147.9,147.83,49.45013384]
[1745359049582,18.64964886,147.92,147.83,49.45013384]
[1745359049780,18.64964886,147.92,147.8,231.9]
[1745359049781,68.0997827,147.86,147.8,231.9]
[1745359049987,49.45013384,147.84,147.8,231.9]
[1745359050173,18.64964886,147.86,147.8,231.9]
[1745359050174,49.45013384,147.82,147.8,231.9]
[1745359050591,18.64964886,147.8,147.76,0.063]
[1745359050903,49.45013384,147.78,147.76,0.063]
[1745359051100,49.45013384,147.77,147.76,0.063]
[1745359051302,68.0997827,147.77,147.76,0.063]
[1745359051901,74.86705616,147.77,147.76,0.063]
[1745359052071,74.86705616,147.77,147.74,0.063]
[1745359052276,68.0997827,147.75,147.74,0.063]
[1745359052819,18.64964886,147.75,147.74,0.063]
[1745359053116,18.64964886,147.78,147.74,0.063]
[1745359053292,26.0,147.8,147.74,0.063]
[1745359053489,44.64964886,147.81,147.75,49.45013384]
[1745359053715,44.64964886,147.81,147.74,0.063]
[1745359053995,49.45013384,147.8,147.74,0.063]
[1745359054512,94.0997827,147.81,147.74,0.063]
[1745359054718,75.45013384,147.81,147.74,0.063]
[1745359055327,49.45013384,147.8,147.74,0.063]
[1745359055499,49.45013384,147.79,147.74,0.063]
[1745359055824,68.0997827,147.75,147.74,0.063]
[1745359056414,18.64964886,147.71,147.67,0.063]
[1745359056714,68.0997827,147.71,147.67,0.063]
[1745359056915,26.0,147.72,147.67,0.063]
[1745359056916,49.45013384,147.72,147.67,0.063]
[1745359057100,12.8938895,147.75,147.67,0.063]
[1745359057294,49.45013384,147.73,147.67,0.063]
[1745359057919,68.0997827,147.74,147.67,0.063]
[1745359058087,49.45013384,147.73,147.67,0.063]
[1745359058613,26.0,147.72,147.67,0.063]
[1745359058808,49.45013384,147.72,147.67,0.063]
[1745359059122,25.41847316,147.74,147.67,0.063]
[1745359059294,49.45013384,147.73,147.67,0.063]
[1745359059601,6.76727346,147.77,147.68,49.45013384]
[1745359059920,49.45013384,147.75,147.67,0.063]
[1745359060299,49.45013384,147.74,147.67,49.51313384]
[1745359060501,49.45013384,147.74,147.67,0.063]
[1745359061291,18.64964886,147.76,147.67,0.063]
[1745359061511,44.64964886,147.76,147.67,0.063]
[1745359061711,49.45013384,147.71,147.67,0.063]
[1745359061910,26.0,147.73,147.67,0.063]
[1745359062128,49.45013384,147.72,147.67,0.063]
[1745359062302,56.21989644,147.72,147.67,0.063]
[1745359063515,68.0997827,147.68,147.67,0.063]
[1745359064113,74.87118031,147.68,147.67,0.063]
[1745359065018,44.64964886,147.66,147.65,0.063]
[1745359065228,18.64964886,147.65,147.61,0.03]
[1745359065518,18.64964886,147.62,147.61,0.03]
[1745359065933,68.0997827,147.62,147.61,0.03]
[1745359066231,74.87393254,147.62,147.61,0.03]
[1745359067419,18.64964886,147.58,147.52,0.03]
[1745359067631,49.45013384,147.53,147.52,0.03]
[1745359067839,68.0997827,147.53,147.52,0.03]
[1745359068018,74.87806508,147.53,147.52,0.03]
[1745359068216,6.7773636,147.55,147.52,0.03]
[1745359068416,32.77704541,147.56,147.52,0.03]
[1745359068733,49.45013384,147.55,147.52,0.03]
[1745359069113,49.45013384,147.54,147.52,0.03]
[1745359069419,49.45013384,147.53,147.52,0.03]
[1745359069613,68.0997827,147.53,147.52,0.03]
[1745359070117,74.87806508,147.53,147.52,0.03]
[1745359070638,25.42793124,147.53,147.52,0.03]
[1745359071111,74.87806508,147.53,147.52,0.03]
[1745359071730,42.94226077,147.56,147.52,0.03]
[1745359071731,49.45013384,147.56,147.52,0.03]
[1745359071929,75.45013384,147.56,147.52,0.03]
[1745359072139,26.0,147.56,147.52,0.03]
[1745359072325,75.45013384,147.56,147.52,0.03]
[1745359072510,68.0997827,147.55,147.52,0.03]
[1745359072909,49.45013384,147.54,147.52,0.03]
[1745359073110,49.45013384,147.53,147.52,0.03]
[1745359074236,18.64964886,147.5,147.46,0.03]
[1745359074746,49.45013384,147.49,147.46,0.03]
[1745359075635,49.45013384,147.48,147.46,0.03]
[1745359076024,49.45013384,147.47,147.46,0.03]
[1745359076530,56.23117405,147.47,147.46,0.03]
[1745359078222,74.88082291,147.47,147.46,1e-08]
[1745359078740,26.0,147.44,147.39,0.063]
[1745359079040,49.45013384,147.4,147.39,0.063]
[1745359079816,6.78104021,147.47,147.39,0.063]
[1745359080046,49.45013384,147.45,147.39,0.063]
[1745359080244,49.45013384,147.43,147.39,0.063]
[1745359080450,49.45013384,147.41,147.39,0.063]
[1745359080635,49.45013384,147.4,147.39,0.063]
[1745359080839,49.45013384,147.41,147.39,0.063]
[1745359081037,49.45013384,147.4,147.39,0.063]
[1745359081241,68.0997827,147.4,147.39,0.063]
[1745359081760,26.0,147.42,147.39,0.063]
[1745359081938,49.45013384,147.4,147.39,0.063]
[1745359082126,68.0997827,147.4,147.39,0.063]
[1745359082326,74.88404321,147.4,147.39,0.063]
[1745359082533,6.78426051,147.4,147.35,0.03]
[1745359082729,6.78426051,147.4,147.31,0.03]
[1745359082730,3.4788,147.33,147.31,0.03]
[1745359083759,49.45013384,147.32,147.31,0.03]
[1745359084048,68.0997827,147.32,147.31,0.03]
[1745359084250,44.64964886,147.27,147.21,1.0442338]
[1745359084428,68.0997827,147.25,147.21,1.0442338]
[1745359085244,44.64964886,147.22,147.21,1.0442338]
[1745359085464,94.0997827,147.22,147.21,1.0442338]
[1745359085831,26.0,147.25,147.21,1.0442338]
[1745359086030,68.0997827,147.22,147.21,1.0442338]
[1745359086735,100.89233805,147.22,147.21,1.0442338]
[1745359086935,74.89233805,147.22,147.21,1.0442338]
[1745359087254,26.0,147.19,147.15,232.56]
[1745359087460,6.79117147,147.25,147.15,232.56]
[1745359087662,34.9335608,147.35,147.17,49.45013384]
[1745359087847,49.45013384,147.24,147.17,49.45013384]
[1745359088035,49.45013384,147.24,147.16,8.0437]
[1745359088036,49.45013384,147.23,147.16,8.0437]
[1745359088235,44.64964886,147.25,147.16,8.0437]
[1745359088536,6.78932717,147.29,147.19,49.45013384]
[1745359088842,49.45013384,147.29,147.21,49.45013384]
[1745359089241,49.45013384,147.29,147.22,49.45013384]
[1745359089749,75.45013384,147.3,147.22,49.45013384]
[1745359089929,6.2146,147.37,147.23,49.45013384]
[1745359090129,49.45013384,147.32,147.25,49.45013384]
[1745359090448,49.45013384,147.33,147.21,7.79296469]
[1745359090752,49.45013384,147.33,147.26,49.45013384]
[1745359091051,49.45013384,147.33,147.24,26.0]
[1745359091262,49.45013384,147.33,147.22,1.0]
[1745359091453,18.64964886,147.35,147.26,49.45013384]
[1745359091655,49.45013384,147.33,147.26,49.45013384]
[1745359092551,49.45013384,147.32,147.25,49.45013384]
[1745359092748,49.45013384,147.32,147.24,26.0]
[1745359092951,44.64964886,147.36,147.24,26.0]
[1745359093150,49.45013384,147.34,147.27,49.45013384]
[1745359093453,18.64964886,147.4,147.31,49.45013384]
[1745359093648,49.45013384,147.38,147.31,49.45013384]
[1745359094033,6.78431297,147.4,147.31,49.45013384]
[1745359094232,49.45013384,147.38,147.31,49.45013384]
[1745359094551,6.78431297,147.4,147.34,49.45013384]
[1745359094552,49.45013384,147.4,147.34,49.45013384]
[1745359094942,49.45013384,147.42,147.35,49.45013384]
[1745359095140,49.45013384,147.42,147.36,49.45013384]
[1745359095346,6.78104021,147.47,147.36,49.45013384]
[1745359095547,49.45013384,147.43,147.36,49.45013384]
[1745359095843,49.45013384,147.46,147.37,26.0]
[1745359096233,26.0,147.49,147.37,26.0]
[1745359096234,6.78030699,147.49,147.37,26.0]
[1745359096435,49.45013384,147.47,147.37,26.0]
[1745359096665,49.45013384,147.46,147.37,26.0]
[1745359097038,49.45013384,147.45,147.37,26.0]
[1745359097258,44.64964886,147.48,147.34,26.0]
[1745359097658,49.45013384,147.43,147.34,26.0]
[1745359097979,0.063,147.46,147.33,26.0]
[1745359098166,0.063,147.46,147.35,1.0]
[1745359098351,49.51313384,147.46,147.37,18.64964886]
[1745359098851,0.063,147.46,147.37,18.64964886]
[1745359099051,49.51313384,147.46,147.37,18.64964886]
[1745359099350,0.063,147.46,147.37,18.64964886]
[1745359099555,0.063,147.46,147.37,19.64964886]
[1745359099854,0.063,147.46,147.43,49.45013384]
[1745359100054,0.063,147.46,147.43,282.17013384]
[1745359100353,0.063,147.46,147.45,49.45013384]
[1745359101551,0.063,147.55,147.46,18.64964886]
[1745359101755,0.063,147.55,147.52,49.45013384]
[1745359101955,0.063,147.55,147.54,49.45013384]
[1745359103181,0.063,147.63,147.53,26.0]
[1745359103393,0.063,147.63,147.58,49.45013384]
[1745359103678,0.063,147.63,147.59,49.45013384]
[1745359103986,0.063,147.63,147.6,49.45013384]
[1745359104195,0.063,147.63,147.62,49.45013384]
[1745359106357,0.063,147.63,147.58,258.58]
[1745359106559,0.063,147.63,147.58,232.58]
[1745359108066,49.45013384,147.59,147.58,232.58]
[1745359108378,25.42563476,147.58,147.47,49.45013384]
[1745359108594,49.45013384,147.51,147.46,232.48]
[1745359108755,49.45013384,147.5,147.46,232.48]
[1745359109091,49.45013384,147.48,147.46,232.48]
[1745359109465,18.64964886,147.54,147.46,232.48]
[1745359109892,49.45013384,147.47,147.36,1.6664]
[1745359110183,26.0,147.44,147.33,49.45013384]
[1745359110494,18.64964886,147.42,147.33,49.45013384]
[1745359110795,49.45013384,147.42,147.34,49.45013384]
[1745359111157,23.72758863,147.51,147.39,49.45013384]
[1745359111378,26.0,147.48,147.4,49.45013384]
[1745359111656,49.45013384,147.49,147.41,49.45013384]
[1745359111869,49.45013384,147.49,147.42,232.46]
[1745359112088,49.45013384,147.48,147.42,232.46]
[1745359112685,49.45013384,147.47,147.42,232.46]
[1745359113084,49.45013384,147.46,147.42,232.46]
[1745359113596,51.42949431,147.5,147.42,232.46]
[1745359113891,49.45013384,147.46,147.42,232.46]
[1745359114571,18.64964886,147.47,147.42,232.46]
[1745359114770,49.45013384,147.45,147.42,232.46]
[1745359115280,6.78013534,147.49,147.42,232.46]
[1745359115485,44.64964886,147.5,147.42,232.46]
[1745359115690,75.45013384,147.5,147.42,281.91013384]
[1745359115884,75.45013384,147.5,147.43,49.45013384]
[1745359116092,57.30172483,147.58,147.44,49.45013384]
[1745359116382,49.45013384,147.52,147.45,49.45013384]
[1745359116600,49.45013384,147.53,147.45,49.45013384]
[1745359116975,18.64964886,147.56,147.46,49.45013384]
[1745359117172,49.45013384,147.53,147.46,49.45013384]
[1745359117370,18.64964886,147.56,147.47,49.45013384]
[1745359117577,6.77560764,147.59,147.5,49.45013384]
[1745359117784,49.45013384,147.59,147.52,49.45013384]
[1745359117970,49.45013384,147.6,147.49,18.64964886]
[1745359118190,49.45013384,147.6,147.53,49.45013384]
[1745359119604,0.063,147.63,147.55,49.45013384]
[1745359119898,0.063,147.63,147.5,44.64964886]
[1745359119899,0.063,147.63,147.56,281.99013384]
[1745359120070,0.063,147.63,147.57,49.45013384]
[1745359120274,0.063,147.63,147.56,232.54]
[1745359120495,49.51313384,147.63,147.56,232.54]
[1745359120699,49.51313384,147.63,147.56,281.99013384]
[1745359121270,0.063,147.63,147.56,281.99013384]
[1745359121473,49.45013384,147.61,147.56,232.54]
[1745359121892,49.45013384,147.6,147.56,232.54]
[1745359122200,49.45013384,147.57,147.56,232.54]
[1745359122403,56.22657891,147.57,147.56,232.54]
[1745359122691,74.87622777,147.57,147.56,232.54]
[1745359124692,91.81734046,147.57,147.45,49.45013384]
[1745359124997,49.45013384,147.52,147.45,281.93013384]
[1745359125304,49.45013384,147.48,147.45,232.48]
[1745359125481,18.64964886,147.51,147.45,232.48]
[1745359125799,49.45013384,147.48,147.45,232.48]
[1745359126507,56.23111625,147.48,147.45,232.48]
[1745359126890,6.78098241,147.48,147.45,232.48]
[1745359127098,56.22979485,147.5,147.45,232.48]
[1745359127281,56.22942871,147.51,147.45,232.48]
[1745359127622,49.45013384,147.54,147.47,49.45013384]
[1745359127788,25.42609393,147.57,147.45,232.48]
[1745359127996,49.45013384,147.55,147.48,49.45013384]
[1745359128204,49.45013384,147.54,147.47,49.45013384]
[1745359128813,56.2283802,147.54,147.45,232.48]
[1745359128991,56.2283802,147.54,147.47,49.45013384]
[1745359129797,49.45013384,147.51,147.45,232.48]
[1745359130394,6.77824636,147.54,147.45,232.48]
[1745359130710,49.45013384,147.51,147.45,232.48]
[1745359131404,6.778642,147.53,147.45,232.48]
[1745359131609,49.45013384,147.52,147.45,281.93013384]
[1745359132403,49.45013384,147.52,147.45,232.48]
[1745359132715,49.45013384,147.51,147.45,232.48]
[1745359133013,56.22950707,147.51,147.45,232.48]
[1745359134105,49.45013384,147.51,147.45,232.48]
[1745359135617,56.22906227,147.52,147.45,232.48]
[1745359135915,18.64964886,147.55,147.46,33.6]
[1745359136078,82.22717256,147.56,147.48,49.45013384]
[1745359136284,32.77703872,147.56,147.49,49.45013384]
[1745359136815,82.22717256,147.56,147.46,33.6]
[1745359136991,82.22717256,147.56,147.49,49.45013384]
[1745359137386,49.45013384,147.55,147.48,49.45013384]
[1745359137908,49.45013384,147.54,147.46,33.6]
[1745359138107,49.45013384,147.54,147.46,83.05013384]
[1745359138310,49.45013384,147.54,147.47,49.45013384]
[1745359138519,49.45013384,147.55,147.47,49.45013384]
[1745359138688,82.22717256,147.56,147.48,49.45013384]
[1745359139008,49.45013384,147.55,147.48,49.45013384]
[1745359139507,32.77703872,147.56,147.48,49.45013384]
[1745359139715,18.64964886,147.59,147.52,49.45013384]
[1745359140094,26.0,147.58,147.52,49.45013384]
[1745359140502,49.45013384,147.58,147.51,49.45013384]
[1745359140781,75.45013384,147.58,147.51,49.45013384]
[1745359141207,49.45013384,147.58,147.51,49.45013384]
[1745359141410,25.4253427,147.59,147.5,49.45013384]
[1745359141602,49.45013384,147.57,147.5,49.45013384]
[1745359141801,26.0,147.58,147.46,40.38147375]
[1745359141990,49.45013384,147.57,147.5,49.45013384]
[1745359142192,49.45013384,147.57,147.46,40.38147375]
[1745359142406,49.45013384,147.57,147.5,49.45013384]
[1745359142584,49.45013384,147.56,147.49,49.45013384]
[1745359143389,49.45013384,147.55,147.46,33.6]
[1745359143717,32.77602446,147.58,147.49,49.45013384]
[1745359143900,49.45013384,147.55,147.49,49.45013384]
[1745359144101,49.45013384,147.55,147.48,49.45013384]
[1745359144313,49.45013384,147.55,147.46,33.6]
[1745359144719,49.45013384,147.55,147.48,49.45013384]
[1745359145016,49.45013384,147.52,147.46,33.6]
[1745359145208,49.45013384,147.51,147.46,33.6]
[1745359145895,49.45013384,147.52,147.46,33.6]
[1745359146492,49.45013384,147.51,147.46,33.6]
[1745359146717,49.45013384,147.5,147.46,33.6]
[1745359147023,49.45013384,147.47,147.45,232.48]
[1745359147311,6.77966101,147.5,147.45,232.48]
[1745359147517,6.6532,147.53,147.45,281.93013384]
[1745359147721,13.42889548,147.59,147.5,49.45013384]
[1745359147901,0.063,147.61,147.56,49.45013384]
[1745359148218,0.063,147.61,147.6,49.45013384]
[1745359148419,0.063,147.61,147.6,281.95013384]
[1745359148936,0.063,147.63,147.62,49.45013384]
[1745359149309,0.063,147.63,147.62,56.22428368]
[1745359149498,8.65264349,147.64,147.62,74.87393254]
[1745359149836,6.98604349,147.64,147.63,95.0997827]
[1745359150324,0.063,147.72,147.64,1.0]
[1745359150496,0.063,147.72,147.66,49.45013384]
[1745359151710,0.063,147.72,147.64,1.0]
[1745359151893,0.063,147.72,147.63,44.64964886]
[1745359152089,49.51313384,147.71,147.63,26.0]
[1745359152294,49.51313384,147.69,147.6,232.5]
[1745359152629,0.063,147.69,147.64,49.45013384]
[1745359152833,49.51313384,147.69,147.6,258.5]
[1745359153142,18.64964886,147.68,147.6,232.5]
[1745359153302,18.64964886,147.68,147.61,32.76]
[1745359154010,18.64964886,147.68,147.61,82.21013384]
[1745359154308,49.45013384,147.68,147.62,49.45013384]
[1745359154514,26.063,147.69,147.63,49.45013384]
[1745359154825,0.063,147.69,147.61,32.76]
[1745359155034,0.063,147.69,147.66,49.45013384]
[1745359156027,0.063,147.69,147.66,101.87209747]
[1745359156541,0.063,147.69,147.66,75.87209747]
[1745359156709,0.063,147.69,147.68,26.0]
[1745359156911,0.063,147.69,147.68,75.45013384]
[1745359159332,0.063,147.71,147.7,49.45013384]
[1745359161723,0.063,147.71,147.63,6.2726]
[1745359161922,0.063,147.71,147.66,26.0]
[1745359162729,0.063,147.71,147.67,18.64964886]
[1745359162930,0.063,147.71,147.7,94.0997827]
[1745359163339,0.063,147.72,147.71,69.0997827]
[1745359163540,0.063,147.75,147.74,44.64964886]
[1745359163755,0.063,147.75,147.74,326.2597827]
[1745359164759,0.063,147.82,147.78,26.0]
[1745359165135,0.063,147.82,147.74,279.34864762]
[1745359165136,0.063,147.82,147.74,232.16]
[1745359165333,0.063,147.82,147.76,49.45013384]
[1745359165545,49.45013384,147.8,147.74,281.61013384]
[1745359165743,49.45013384,147.8,147.74,232.16]
[1745359165962,56.21603754,147.8,147.74,281.61013384]
[1745359166267,56.21603754,147.8,147.74,232.16]
[1745359166440,56.21603754,147.8,147.74,281.61013384]
[1745359167040,56.21603754,147.8,147.74,232.16]
[1745359167236,68.0997827,147.78,147.74,232.16]
[1745359167567,49.45013384,147.77,147.74,232.16]
[1745359167939,74.8679722,147.75,147.74,232.16]
[1745359168146,18.64964886,147.74,147.71,31.92]
[1745359168444,18.64964886,147.71,147.65,232.1]
[1745359168649,49.45013384,147.66,147.65,232.1]
[1745359169249,26.0,147.7,147.65,232.1]
[1745359169452,26.0,147.7,147.66,49.45013384]
[1745359169659,8.30466384,147.76,147.69,49.45013384]
[1745359169852,49.45013384,147.79,147.73,49.45013384]
[1745359170054,56.21616022,147.8,147.73,31.02]
[1745359170258,6.2914,147.82,147.76,49.45013384]
[1745359170458,6.2914,147.82,147.73,31.02]
[1745359170667,6.2914,147.82,147.77,49.45013384]
[1745359170965,6.2914,147.82,147.76,49.45013384]
[1745359171352,6.2914,147.82,147.77,49.45013384]
[1745359171659,0.063,147.82,147.78,49.66873479]
[1745359171859,0.063,147.82,147.77,232.12]
[1745359172162,0.063,147.82,147.81,49.66873479]
[1745359172362,0.063,147.82,147.77,232.12]
[1745359172665,0.063,147.82,147.81,49.66873479]
[1745359172971,0.063,147.82,147.81,75.66873479]
[1745359174472,0.063,147.82,147.81,75.61687942]
[1745359174973,0.063,147.82,147.81,49.61687942]
[1745359175647,0.063,147.82,147.8,26.0]
[1745359175975,0.063,147.82,147.81,49.61687942]
[1745359176556,0.063,147.82,147.78,26.0]
[1745359176858,0.063,147.82,147.77,232.12]
[1745359177056,0.063,147.82,147.77,281.73687942]
[1745359177257,0.063,147.82,147.78,49.61687942]
[1745359177452,0.063,147.82,147.77,232.12]
[1745359177772,49.61687942,147.81,147.77,262.34]
[1745359177966,49.61687942,147.8,147.77,262.34]
[1745359178569,49.61687942,147.81,147.77,262.34]
[1745359178766,0.063,147.82,147.77,262.34]
[1745359178767,26.063,147.82,147.77,262.34]
[1745359179253,6.76544212,147.81,147.77,30.22]
[1745359179571,68.26652828,147.78,147.77,30.22]
[1745359180055,75.61687942,147.8,147.77,30.22]
[1745359180248,32.82811388,147.82,147.77,30.22]
[1745359180455,18.64964886,147.81,147.77,30.22]
[1745359180655,68.26652828,147.81,147.77,30.22]
[1745359181057,49.61687942,147.8,147.77,30.22]
[1745359181272,18.64964886,147.81,147.77,30.22]
[1745359181456,0.063,147.82,147.77,79.83687942]
[1745359181656,0.063,147.82,147.78,49.61687942]
[1745359181958,0.063,147.82,147.77,30.22]
[1745359182152,0.063,147.82,147.8,49.61687942]
[1745359182559,0.063,147.82,147.79,49.61687942]
[1745359182784,0.063,147.82,147.8,49.61687942]
[1745359183177,0.063,147.82,147.79,49.61687942]
[1745359183364,68.32952828,147.86,147.79,49.61687942]
[1745359183565,49.61687942,147.83,147.79,232.04]
[1745359183760,49.61687942,147.81,147.79,232.04]
[1745359184478,56.38186912,147.82,147.79,232.04]
[1745359184676,18.64964886,147.82,147.79,232.04]
[1745359185060,68.26652828,147.82,147.79,232.04]
[1745359185491,18.64964886,147.8,147.79,232.04]
[1745359185783,68.26652828,147.8,147.79,232.04]
[1745359185987,18.64964886,147.79,147.77,30.22]
[1745359186277,101.03334381,147.78,147.77,30.22]
[1745359186784,101.03334381,147.78,147.7,261.42]
[1745359186957,49.61687942,147.75,147.7,261.42]
[1745359187762,49.61687942,147.74,147.7,261.42]
[1745359188062,68.33350323,147.78,147.7,261.42]
[1745359188063,49.61687942,147.72,147.7,261.42]
[1745359188466,49.61687942,147.71,147.7,261.42]
[1745359189490,25.4189318,147.73,147.7,261.42]
[1745359189780,49.61687942,147.72,147.7,261.42]
[1745359190498,25.4189318,147.73,147.7,261.42]
[1745359190499,49.61687942,147.71,147.7,261.42]
[1745359190659,25.4189318,147.73,147.7,261.42]
[1745359191079,49.61687942,147.71,147.7,261.42]